bitfinex/quotes_SOLUSD_20250819
["timestamp","ask_amount","ask_price","bid_price","bid_amount"]
[1755625879845,0.03,178.29,178.28,13.59559401]
[1755625880742,0.03,178.29,178.28,24.82125295]
[1755625881256,0.03,178.29,178.28,25.50125295]
[1755625881722,0.03,178.29,178.28,25.64341452]
[1755625881927,0.03,178.29,178.28,66.20341452]
[1755625885252,0.03,178.29,178.28,54.97775558]
[1755625885452,0.03,178.29,178.28,66.20341452]
[1755625886349,0.03,178.31,178.3,39.59559401]
[1755625886547,0.03,178.31,178.3,65.56341452]
[1755625886754,0.03,178.31,178.3,66.24341452]
[1755625887061,0.03,178.33,178.32,39.59559401]
[1755625887363,0.03,178.33,178.32,91.56341452]
[1755625887753,0.03,178.33,178.32,92.24341452]
[1755625887955,0.03,178.33,178.32,68.49079552]
[1755625889556,0.2,178.35,178.34,36.18907346]
[1755625889746,0.69,178.43,178.38,39.59559401]
[1755625889947,0.69,178.43,178.42,24.82125295]
[1755625890147,0.69,178.43,178.42,65.40125295]
[1755625890346,0.69,178.45,178.43,13.59559401]
[1755625890530,0.69,178.44,178.43,24.82125295]
[1755625891246,0.79,178.47,178.43,13.59559401]
[1755625891454,0.69,178.46,178.43,13.59559401]
[1755625891764,0.69,178.45,178.44,54.15559401]
[1755625892636,0.69,178.45,178.44,13.59559401]
[1755625893167,0.69,178.45,178.42,40.54]
[1755625893362,0.69,178.45,178.42,13.59559401]
[1755625893552,0.69,178.44,178.42,54.13559401]
[1755625893755,0.69,178.43,178.42,54.13559401]
[1755625893947,0.69,178.46,178.42,65.36125295]
[1755625894151,0.69,178.45,178.44,11.22565894]
[1755625894753,0.1,178.47,178.44,11.22565894]
[1755625894947,0.1,178.47,178.45,24.82125295]
[1755625895153,0.1,178.47,178.46,11.22565894]
[1755625895554,0.1,178.47,178.45,24.82125295]
[1755625895762,0.1,178.47,178.45,13.59559401]
[1755625895968,0.69,178.46,178.45,13.59559401]
[1755625896355,0.1,178.47,178.45,24.82125295]
[1755625896548,0.1,178.47,178.46,11.22565894]
[1755625896757,0.79,178.47,178.45,24.82125295]
[1755625896943,0.79,178.47,178.44,40.52]
[1755625896944,0.69,178.46,178.44,40.52]
[1755625897142,0.1,178.47,178.44,40.52]
[1755625897573,0.69,178.46,178.44,40.52]
[1755625897939,0.69,178.45,178.4,26.0]
[1755625898249,0.1,178.47,178.4,26.0]
[1755625898250,11.32565894,178.47,178.42,24.82125295]
[1755625898448,0.79,178.47,178.43,11.22565894]
[1755625898771,0.69,178.46,178.42,54.09559401]
[1755625898949,0.69,178.45,178.42,54.09559401]
[1755625899272,11.32565894,178.47,178.42,54.09559401]
[1755625899273,11.91565894,178.44,178.42,40.5]
[1755625899451,0.69,178.43,178.4,40.5]
[1755625900076,11.22565894,178.44,178.4,40.5]
[1755625900375,0.69,178.42,178.4,40.5]
[1755625900747,11.91565894,178.44,178.4,40.5]
[1755625900941,0.69,178.43,178.4,40.5]
[1755625901770,0.1,178.47,178.42,11.22565894]
[1755625901957,0.1,178.47,178.43,11.22565894]
[1755625902147,0.79,178.47,178.43,11.22565894]
[1755625902348,11.91565894,178.46,178.42,40.46]
[1755625902565,11.22565894,178.46,178.42,40.46]
[1755625902871,11.91565894,178.45,178.4,24.82125295]
[1755625903044,0.1,178.47,178.4,65.30125295]
[1755625903245,0.69,178.44,178.4,54.07559401]
[1755625903467,0.69,178.43,178.4,54.07559401]
[1755625904473,0.69,178.43,178.36,0.7]
[1755625904474,11.22565894,178.44,178.38,11.22565894]
[1755625904650,11.22565894,178.39,178.34,24.82125295]
[1755625904968,11.22565894,178.4,178.36,13.59559401]
[1755625905384,11.22565894,178.4,178.35,11.22565894]
[1755625905385,0.69,178.39,178.35,13.59559401]
[1755625905687,11.91565894,178.39,178.35,13.59559401]
[1755625906569,0.69,178.39,178.35,13.59559401]
[1755625906772,0.69,178.39,178.34,40.46]
[1755625906773,0.69,178.38,178.34,40.46]
[1755625907274,0.69,178.37,178.34,40.46]
[1755625907573,0.69,178.4,178.34,0.7]
[1755625907778,11.91565894,178.4,178.34,11.92565894]
[1755625908156,11.22565894,178.41,178.35,24.82125295]
[1755625908373,11.22565894,178.41,178.35,25.52125295]
[1755625908671,11.22565894,178.41,178.36,11.22565894]
[1755625908874,11.22565894,178.43,178.38,11.22565894]
[1755625909179,11.22565894,178.43,178.37,0.7]
[1755625909180,11.91565894,178.44,178.39,24.82125295]
[1755625909368,11.91565894,178.44,178.39,25.52125295]
[1755625909554,11.91565894,178.44,178.39,14.29559401]
[1755625909762,0.69,178.43,178.39,14.29559401]
[1755625909969,11.91565894,178.42,178.36,14.29559401]
[1755625910281,0.69,178.42,178.37,11.22565894]
[1755625910650,0.72,178.44,178.38,0.7]
[1755625911174,0.72,178.44,178.37,11.22565894]
[1755625911566,11.94565894,178.44,178.38,11.22565894]
[1755625911869,0.72,178.44,178.39,24.82125295]
[1755625912082,11.94565894,178.44,178.39,25.52125295]
[1755625913076,0.03,178.44,178.4,11.92565894]
[1755625913247,0.03,178.44,178.41,0.7]
[1755625913648,0.03,178.44,178.4,11.22565894]
[1755625913872,0.03,178.44,178.39,11.92565894]
[1755625914057,0.03,178.44,178.4,0.7]
[1755625914366,11.94565894,178.44,178.39,11.92565894]
[1755625915360,11.25565894,178.44,178.4,0.7]
[1755625915568,0.03,178.44,178.41,0.7]
[1755625915978,0.03,178.44,178.4,11.22565894]
[1755625916583,11.22565894,178.41,178.36,14.29559401]
[1755625916770,11.22565894,178.4,178.36,14.29559401]
[1755625917084,0.69,178.39,178.35,40.4]
[1755625917385,11.22565894,178.4,178.36,0.7]
[1755625917594,11.22565894,178.41,178.36,11.22565894]
[1755625917770,11.91565894,178.4,178.35,24.82125295]
[1755625917969,11.91565894,178.4,178.35,25.52125295]
[1755625918163,11.22565894,178.41,178.36,11.92565894]
[1755625918363,11.91565894,178.41,178.36,11.92565894]
[1755625918664,11.22565894,178.42,178.37,0.7]
[1755625918864,0.69,178.43,178.39,11.22565894]
[1755625919270,51.57565894,178.44,178.4,11.92565894]
[1755625919271,0.03,178.44,178.4,11.92565894]
[1755625919472,11.25565894,178.44,178.39,11.22565894]
[1755625919691,11.94565894,178.44,178.39,11.22565894]
[1755625919862,11.94565894,178.44,178.39,11.92565894]
[1755625920188,0.69,178.43,178.4,11.22565894]
[1755625920387,11.22565894,178.43,178.38,13.59559401]
[1755625920562,0.03,178.44,178.38,13.59559401]
[1755625920563,11.91565894,178.42,178.38,13.59559401]
[1755625921992,0.69,178.42,178.38,13.59559401]
[1755625923484,0.03,178.44,178.39,0.68]
[1755625923485,11.92565894,178.44,178.39,0.68]
[1755625923682,0.03,178.44,178.4,0.68]
[1755625924289,0.03,178.44,178.39,11.22565894]
[1755625924290,0.03,178.44,178.41,0.68]
[1755625924486,11.25565894,178.44,178.4,0.68]
[1755625924791,11.92565894,178.44,178.4,0.68]
[1755625924999,0.03,178.44,178.4,0.68]
[1755625925399,11.22565894,178.41,178.35,26.0]
[1755625925581,11.22565894,178.39,178.34,13.65559401]
[1755625925780,11.22565894,178.38,178.34,14.33559401]
[1755625926019,11.22565894,178.36,178.34,0.06]
[1755625926371,11.22565894,178.37,178.34,0.06]
[1755625926807,0.67,178.36,178.34,0.06]
[1755625927189,11.89565894,178.36,178.34,0.06]
[1755625927377,11.89565894,178.35,178.34,0.06]
[1755625927985,37.89565894,178.35,178.34,0.06]
[1755625928179,11.22565894,178.34,178.33,0.06]
[1755625928383,11.89565894,178.34,178.33,0.06]
[1755625929982,12.03782051,178.34,178.33,0.06]
[1755625930284,17.64508752,178.34,178.32,0.06]
[1755625930471,65.95341452,178.33,178.31,0.06]
[1755625930668,24.96341452,178.32,178.31,0.06]
[1755625930878,25.63341452,178.32,178.3,0.06]
[1755625931106,12.03782051,178.31,178.3,0.06]
[1755625931276,31.24162494,178.31,178.3,0.06]
[1755625931470,20.015966,178.31,178.3,0.06]
[1755625931804,25.63341452,178.31,178.3,0.06]
[1755625932285,31.24162494,178.31,178.3,0.06]
[1755625933783,13.73775558,178.3,178.24,0.06]
[1755625933990,25.63341452,178.3,178.24,0.06]
[1755625934777,12.03782051,178.3,178.24,0.06]
[1755625935077,52.37782051,178.3,178.24,0.06]
[1755625935503,11.22565894,178.3,178.24,0.74]
[1755625935692,77.54565894,178.3,178.26,0.68]
[1755625935876,78.21565894,178.3,178.24,0.06]
[1755625936402,52.21565894,178.3,178.24,0.74]
[1755625936998,52.35782051,178.3,178.24,0.06]
[1755625937196,71.56193947,178.3,178.24,0.06]
[1755625937604,65.95341452,178.3,178.24,0.06]
[1755625938106,68.20319652,178.3,178.24,0.06]
[1755625938694,68.20319652,178.3,178.26,0.68]
[1755625938695,37.22565894,178.3,178.26,0.68]
[1755625938892,78.21565894,178.3,178.24,0.06]
[1755625939698,79.79518794,178.3,178.25,0.68]
[1755625939898,77.54565894,178.3,178.26,0.68]
[1755625940197,51.54565894,178.3,178.26,0.68]
[1755625940401,65.95341452,178.3,178.24,0.06]
[1755625940613,0.14216157,178.29,178.24,0.06]
[1755625940781,25.63341452,178.29,178.24,0.06]
[1755625940986,11.22565894,178.25,178.24,0.06]
[1755625941309,51.70782051,178.25,178.24,0.06]
[1755625941694,52.37782051,178.25,178.24,0.06]
[1755625941907,71.58351269,178.25,178.24,0.06]
[1755625942080,71.58351269,178.25,178.23,0.06]
[1755625942081,23.73775558,178.24,178.23,0.06]
[1755625942277,34.96341452,178.24,178.22,0.06]
[1755625942501,41.17216157,178.23,178.22,0.06]
[1755625942910,65.99341452,178.23,178.22,0.06]
[1755625944693,52.39782051,178.23,178.22,0.06]
[1755625944889,65.99341452,178.23,178.22,0.06]
[1755625945282,51.72782051,178.23,178.22,0.06]
[1755625945827,62.39782051,178.23,178.22,0.06]
[1755625946495,85.55925205,178.23,178.17,0.2]
[1755625946812,11.22565894,178.18,178.17,0.2]
[1755625946985,51.56565894,178.18,178.17,0.2]
[1755625948008,52.23565894,178.18,178.17,0.2]
[1755625948389,56.76618796,178.18,178.17,0.2]
[1755625948717,56.09618796,178.18,178.17,0.2]
[1755625949007,51.56565894,178.18,178.17,0.2]
[1755625949713,56.13316819,178.18,178.17,0.2]
[1755625950310,56.94532976,178.18,178.17,0.2]
[1755625950887,56.27532976,178.18,178.17,0.2]
[1755625952303,56.94532976,178.18,178.17,0.2]
[1755625952501,76.15322593,178.18,178.17,0.2]
[1755625952701,23.73775558,178.17,178.16,0.2]
[1755625953020,35.64341452,178.17,178.16,0.2]
[1755625953935,25.64341452,178.17,178.16,0.2]
[1755625954296,35.64341452,178.17,178.16,0.2]
[1755625954511,24.96341452,178.17,178.16,0.2]
[1755625954922,11.22565894,178.17,178.16,0.92]
[1755625955298,51.54565894,178.17,178.16,0.92]
[1755625955721,51.54565894,178.17,178.16,0.2]
[1755625956144,51.54565894,178.17,178.16,0.92]
[1755625957348,11.25565894,178.21,178.16,0.92]
[1755625957503,40.32,178.2,178.17,0.72]
[1755625957917,51.54565894,178.2,178.17,0.72]
[1755625958514,40.32,178.2,178.17,0.72]
[1755625959635,51.54565894,178.2,178.18,0.72]
[1755625960137,51.54565894,178.2,178.16,0.2]
[1755625960138,26.0,178.17,178.16,0.2]
[1755625960311,77.54565894,178.17,178.16,0.2]
[1755625961520,26.68,178.19,178.16,0.2]
[1755625961825,40.32,178.18,178.16,0.2]
[1755625962541,11.22565894,178.17,178.16,0.2]
[1755625962739,40.32,178.18,178.16,0.2]
[1755625963242,40.32,178.18,178.17,0.72]
[1755625963426,51.54565894,178.18,178.17,0.72]
[1755625963633,51.54565894,178.18,178.16,0.2]
[1755625963837,40.32,178.18,178.17,0.72]
[1755625964753,26.0,178.19,178.17,0.72]
[1755625964920,0.03,178.21,178.17,0.72]
[1755625964921,11.25565894,178.21,178.17,0.72]
[1755625965117,40.32,178.2,178.17,0.72]
[1755625965731,40.32,178.2,178.16,11.42565894]
[1755625965925,40.32,178.2,178.18,0.72]
[1755625966157,40.32,178.2,178.19,0.72]
[1755625966636,0.03,178.21,178.19,0.72]
[1755625966953,0.03,178.21,178.2,11.22565894]
[1755625967338,0.03,178.21,178.2,11.94565894]
[1755625967742,40.35,178.21,178.18,0.72]
[1755625968246,40.35,178.21,178.16,11.42565894]
[1755625968436,11.22565894,178.2,178.16,0.92]
[1755625968641,40.32,178.19,178.16,0.92]
[1755625969331,40.32,178.19,178.16,0.2]
[1755625969526,40.32,178.19,178.16,0.92]
[1755625969724,40.32,178.19,178.16,0.2]
[1755625969926,40.32,178.19,178.17,0.72]
[1755625970456,40.32,178.19,178.16,0.2]
[1755625971153,11.22565894,178.18,178.16,0.2]
[1755625971448,40.32,178.17,178.16,0.2]
[1755625971651,52.22565894,178.17,178.16,0.2]
[1755625972043,51.54565894,178.17,178.16,0.2]
[1755625973743,209.22565894,178.17,178.16,0.2]
[1755625973951,183.36782051,178.17,178.16,0.2]
[1755625974770,196.96341452,178.17,178.16,0.2]
[1755625975057,202.57603168,178.17,178.16,0.2]
[1755625975438,207.27540099,178.17,178.16,0.2]
[1755625975972,227.66278383,178.17,178.16,0.2]
[1755625976171,201.66278383,178.17,178.16,0.2]
[1755625976480,183.36782051,178.17,178.16,0.2]
[1755625977061,183.22565894,178.17,178.16,0.2]
[1755625977453,183.36782051,178.17,178.16,0.2]
[1755625977657,207.27540099,178.17,178.16,0.2]
[1755625978970,201.66278383,178.17,178.16,0.2]
[1755625979166,188.06718982,178.17,178.16,0.2]
[1755625979371,207.27540099,178.17,178.16,0.2]
[1755625980054,201.66278383,178.17,178.16,0.2]
[1755625980251,182.54565894,178.17,178.16,0.2]
[1755625980489,187.92502825,178.17,178.16,0.2]
[1755625980665,183.22565894,178.17,178.16,0.2]
[1755625981074,182.54565894,178.17,178.16,0.2]
[1755625981305,142.22565894,178.17,178.16,0.2]
[1755625981597,182.56565894,178.17,178.16,0.2]
[1755625981757,183.24565894,178.17,178.16,0.2]
[1755625981958,208.56565894,178.17,178.16,0.2]
[1755625982467,204.5757847,178.17,178.16,0.2]
[1755625982775,205.2557847,178.17,178.16,0.2]
[1755625983282,210.09731558,178.17,178.16,0.2]
[1755625983671,197.69290959,178.17,178.16,0.2]
[1755625983859,26.0,178.15,178.14,0.06]
[1755625984062,73.71794627,178.15,178.14,0.06]
[1755625984260,74.37794627,178.15,178.14,0.06]
[1755625984470,73.71794627,178.15,178.14,0.06]
[1755625984884,74.37794627,178.15,178.14,0.06]
[1755625985089,73.71794627,178.15,178.14,0.06]
[1755625985388,79.09579548,178.15,178.14,0.06]
[1755625986476,82.46008399,178.15,178.14,0.06]
[1755625986678,82.31792242,178.15,178.14,0.06]
[1755625987367,77.60007321,178.15,178.14,0.06]
[1755625987981,77.60007321,178.15,178.14,0.73]
[1755625987982,37.26007321,178.15,178.14,0.73]
[1755625988193,77.60007321,178.15,178.14,0.73]
[1755625988494,77.60007321,178.15,178.14,0.06]
[1755625988690,77.60007321,178.15,178.14,0.73]
[1755625988890,51.60007321,178.15,178.14,0.73]
[1755625989394,40.34,178.15,178.14,0.73]
[1755625989803,4.71784921,178.19,178.14,0.73]
[1755625990100,37.26007321,178.18,178.14,0.73]
[1755625990399,51.60007321,178.17,178.15,0.67]
[1755625990600,51.60007321,178.17,178.16,0.67]
[1755625990782,40.34,178.17,178.16,0.67]
[1755625991103,4.71784921,178.2,178.16,0.67]
[1755625991104,37.26007321,178.18,178.16,0.67]
[1755625991278,11.26007321,178.19,178.16,0.67]
[1755625991488,40.34,178.18,178.16,0.67]
[1755625991696,40.34,178.19,178.16,0.67]
[1755625991879,51.60007321,178.19,178.17,0.67]
[1755625992267,51.60007321,178.19,178.18,0.67]
[1755625992574,40.34,178.19,178.18,0.67]
[1755625994498,51.60007321,178.19,178.16,0.67]
[1755625994669,11.26007321,178.18,178.16,0.67]
[1755625994866,51.58007321,178.17,178.14,0.73]
[1755625995069,11.26007321,178.16,178.14,26.73]
[1755625995401,40.32,178.17,178.15,0.67]
[1755625995770,40.32,178.17,178.15,11.93007321]
[1755625996072,51.58007321,178.17,178.15,0.67]
[1755625996273,11.26007321,178.17,178.15,0.67]
[1755625996668,40.32,178.16,178.14,26.06]
[1755625996868,40.32,178.16,178.14,26.73]
[1755625997495,40.32,178.16,178.14,0.06]
[1755625997496,11.26007321,178.15,178.14,0.06]
[1755625998278,40.32,178.16,178.14,0.73]
[1755625998473,11.26007321,178.15,178.14,0.06]
[1755626000998,40.35,178.16,178.14,0.73]
[1755626001187,51.61007321,178.16,178.14,0.73]
[1755626001707,51.61007321,178.16,178.14,0.06]
[1755626002311,51.61007321,178.16,178.14,0.73]
[1755626002689,51.61007321,178.16,178.14,0.06]
[1755626003374,0.03,178.16,178.14,11.99007321]
[1755626003574,0.03,178.16,178.15,0.67]
[1755626004006,0.03,178.16,178.14,0.06]
[1755626004269,11.29007321,178.16,178.14,0.06]
[1755626004507,0.03,178.16,178.14,0.06]
[1755626004715,0.03,178.16,178.15,0.67]
[1755626005878,0.03,178.16,178.14,0.06]
[1755626006719,0.03,178.16,178.15,0.67]
[1755626007580,0.03,178.16,178.15,11.93007321]
[1755626007799,0.03,178.16,178.15,0.67]
[1755626008307,0.03,178.16,178.15,7.90082496]
[1755626009584,0.03,178.16,178.15,0.67]
[1755626010409,0.03,178.16,178.15,7.90082496]
[1755626011479,0.03,178.16,178.15,0.67]
[1755626012111,0.03,178.16,178.15,7.90082496]
[1755626012406,0.03,178.16,178.15,21.63858054]
[1755626017412,0.03,178.16,178.15,21.69858054]
[1755626017785,0.03,178.16,178.15,14.32559401]
[1755626018088,0.03,178.16,178.15,21.69858054]
[1755626018300,0.03,178.16,178.15,21.55641897]
[1755626018500,0.03,178.16,178.15,21.69858054]
[1755626020418,0.03,178.18,178.15,21.69858054]
[1755626020419,0.03,178.18,178.17,39.59559401]
[1755626020610,0.03,178.2,178.18,13.73775558]
[1755626020809,0.03,178.2,178.19,20.96858054]
[1755626020985,0.03,178.2,178.19,21.64858054]
[1755626023396,0.03,178.2,178.19,23.89773054]
[1755626024187,0.03,178.2,178.19,21.64858054]
[1755626025708,0.03,178.2,178.19,20.96858054]
[1755626026122,0.03,178.2,178.19,21.64858054]
[1755626027220,0.03,178.2,178.19,20.96858054]
[1755626027619,0.03,178.2,178.19,21.64858054]
[1755626029030,0.03,178.2,178.19,47.64858054]
[1755626029410,0.03,178.2,178.19,54.8794055]
[1755626030310,0.03,178.2,178.19,47.64858054]
[1755626030711,0.03,178.2,178.19,54.8794055]
[1755626031134,0.03,178.2,178.19,31.1283015]
[1755626031317,0.03,178.21,178.2,54.1994055]
[1755626031517,0.03,178.22,178.21,20.96858054]
[1755626031713,0.03,178.22,178.21,61.92858054]
[1755626032745,0.03,178.22,178.21,13.73775558]
[1755626032914,0.75,178.22,178.21,7.23082496]
[1755626033329,0.03,178.22,178.21,7.23082496]
[1755626033533,0.03,178.22,178.21,20.96858054]
[1755626035126,0.03,178.22,178.21,13.59559401]
[1755626035329,0.75,178.22,178.21,7.23082496]
[1755626035534,0.75,178.22,178.2,66.28]
[1755626035535,0.75,178.22,178.2,47.51082496]
[1755626035749,0.75,178.22,178.19,7.23082496]
[1755626035750,0.72,178.21,178.19,7.23082496]
[1755626035943,0.03,178.22,178.2,7.23082496]
[1755626036746,0.75,178.22,178.2,7.23082496]
[1755626039042,0.72,178.21,178.18,40.28]
[1755626039247,0.72,178.21,178.16,46.82641897]
[1755626039248,7.95082496,178.21,178.16,46.82641897]
[1755626039422,0.72,178.2,178.16,46.82641897]
[1755626039624,0.72,178.19,178.16,46.82641897]
[1755626039845,0.72,178.19,178.16,39.59559401]
[1755626040142,0.03,178.22,178.17,7.23082496]
[1755626040349,0.72,178.21,178.17,7.23082496]
[1755626040539,7.95082496,178.21,178.16,20.82641897]
[1755626040853,7.95082496,178.2,178.15,40.34]
[1755626041024,0.72,178.19,178.15,40.34]
[1755626041217,7.23082496,178.2,178.15,40.34]
[1755626041421,0.72,178.18,178.15,40.34]
[1755626041644,0.72,178.17,178.15,0.06]
[1755626041945,0.72,178.16,178.15,0.06]
[1755626042144,7.95082496,178.16,178.15,0.06]
[1755626042517,0.72,178.16,178.15,0.06]
[1755626044251,0.71,178.2,178.15,0.06]
[1755626044427,7.94082496,178.19,178.15,0.06]
[1755626044828,7.23082496,178.19,178.15,0.06]
[1755626045048,0.71,178.18,178.15,0.06]
[1755626045231,7.23082496,178.18,178.15,0.06]
[1755626045436,0.71,178.17,178.15,0.06]
[1755626046317,0.71,178.16,178.15,0.06]
[1755626046522,7.23082496,178.19,178.15,0.06]
[1755626046722,26.0,178.21,178.15,0.76]
[1755626046723,7.94082496,178.2,178.15,0.76]
[1755626046923,0.71,178.19,178.15,0.76]
[1755626047124,0.71,178.19,178.15,0.06]
[1755626047352,26.0,178.21,178.15,0.06]
[1755626047537,0.71,178.18,178.15,0.06]
[1755626048954,0.71,178.17,178.15,0.06]
[1755626049534,0.71,178.16,178.15,0.06]
[1755626052748,7.94082496,178.18,178.15,0.06]
[1755626052949,0.71,178.17,178.15,0.06]
[1755626053976,0.71,178.19,178.15,0.06]
[1755626054260,0.74,178.21,178.17,7.23082496]
[1755626054434,0.71,178.2,178.15,21.02858054]
[1755626054640,0.71,178.19,178.15,13.79775558]
[1755626054830,0.71,178.19,178.15,47.02858054]
[1755626055036,0.71,178.18,178.17,26.0]
[1755626055759,0.71,178.18,178.15,0.06]
[1755626055760,7.94082496,178.18,178.15,0.06]
[1755626055975,7.23082496,178.18,178.15,26.06]
[1755626056175,0.71,178.17,178.15,26.06]
[1755626056343,0.71,178.16,178.15,26.06]
[1755626056959,7.23082496,178.18,178.15,26.06]
[1755626057140,0.71,178.17,178.15,26.06]
[1755626057336,40.28,178.19,178.15,0.06]
[1755626057578,48.22082496,178.19,178.15,0.76]
[1755626057763,40.28,178.19,178.15,7.99082496]
[1755626057939,40.99,178.19,178.15,7.99082496]
[1755626058638,0.74,178.21,178.17,7.23082496]
[1755626058881,0.74,178.21,178.15,33.99082496]
[1755626058882,7.94082496,178.2,178.15,33.99082496]
[1755626059044,0.71,178.19,178.15,33.99082496]
[1755626059244,0.71,178.19,178.16,7.23082496]
[1755626059454,7.97082496,178.21,178.16,7.23082496]
[1755626059648,7.26082496,178.21,178.16,7.23082496]
[1755626059877,0.71,178.2,178.16,7.23082496]
[1755626060085,0.71,178.2,178.16,7.93082496]
[1755626060682,0.71,178.19,178.17,26.0]
[1755626061375,7.94082496,178.18,178.17,26.0]
[1755626061576,7.23082496,178.18,178.17,26.0]
[1755626061909,0.03,178.21,178.17,26.0]
[1755626061910,7.23082496,178.19,178.17,26.0]
[1755626062049,0.71,178.2,178.17,26.0]
[1755626062249,7.26082496,178.21,178.17,26.0]
[1755626062474,7.26082496,178.21,178.15,33.99082496]
[1755626062789,7.83082496,178.21,178.15,33.99082496]
[1755626062952,7.83082496,178.21,178.16,7.93082496]
[1755626063147,7.83082496,178.21,178.16,7.23082496]
[1755626063462,7.83082496,178.21,178.17,0.7]
[1755626063878,0.03,178.21,178.16,7.23082496]
[1755626064059,0.03,178.21,178.18,0.7]
[1755626064389,0.03,178.21,178.18,7.93082496]
[1755626064676,0.03,178.21,178.19,0.7]
[1755626065252,0.03,178.21,178.18,7.23082496]
[1755626065453,7.80082496,178.2,178.15,0.06]
[1755626065703,7.80082496,178.2,178.15,0.76]
[1755626067015,7.80082496,178.2,178.15,7.99082496]
[1755626067217,7.80082496,178.2,178.15,0.76]
[1755626067521,0.57,178.19,178.15,7.99082496]
[1755626068478,0.03,178.21,178.16,7.93082496]
[1755626068796,0.03,178.21,178.17,7.23082496]
[1755626069184,0.03,178.21,178.18,0.7]
[1755626069378,0.03,178.21,178.18,7.93082496]
[1755626069580,0.03,178.21,178.2,7.23082496]
[1755626070015,0.03,178.21,178.2,21.66858054]
[1755626072323,0.03,178.21,178.2,14.43775558]
[1755626072492,0.03,178.21,178.2,21.66858054]
[1755626074819,0.03,178.21,178.2,13.73775558]
[1755626075023,0.03,178.21,178.19,7.23082496]
[1755626075721,0.03,178.21,178.18,7.23082496]
[1755626076016,0.03,178.21,178.16,7.23082496]
[1755626076221,0.69,178.2,178.16,7.23082496]
[1755626076940,0.03,178.21,178.16,7.95082496]
[1755626077093,0.72,178.21,178.17,7.95082496]
[1755626077498,0.03,178.21,178.17,7.95082496]
[1755626078402,0.72,178.21,178.17,7.95082496]
[1755626079121,0.03,178.21,178.17,7.95082496]
[1755626079495,0.03,178.21,178.17,7.23082496]
[1755626079819,0.03,178.21,178.2,7.23082496]
[1755626080018,0.03,178.21,178.2,7.95082496]
[1755626080814,0.03,178.21,178.2,21.68858054]
[1755626081936,0.03,178.21,178.2,28.9194055]
[1755626082104,0.03,178.21,178.2,21.68858054]
[1755626085604,0.03,178.21,178.2,28.9194055]
[1755626086113,0.03,178.22,178.21,13.73775558]
[1755626086318,0.03,178.22,178.21,61.92858054]
[1755626086508,0.03,178.25,178.24,26.0]
[1755626086705,0.03,178.25,178.24,46.96858054]
[1755626086897,0.03,178.25,178.24,47.68858054]
[1755626088824,0.03,178.25,178.24,87.92858054]
[1755626089821,0.03,178.25,178.24,47.68858054]
[1755626090021,0.03,178.25,178.24,87.92858054]
[1755626090229,0.03,178.25,178.24,46.96858054]
[1755626090607,0.03,178.25,178.21,0.72]
[1755626090608,0.03,178.25,178.22,13.73775558]
[1755626090921,0.72,178.25,178.23,7.23082496]
[1755626091122,0.03,178.25,178.24,7.23082496]
[1755626091424,0.03,178.25,178.24,61.04641897]
[1755626091626,0.03,178.25,178.24,61.90858054]
[1755626093430,0.03,178.25,178.24,61.18858054]
[1755626094114,0.03,178.25,178.24,61.90858054]